[Event "Chinese League Division-A 2024"]
[Site "Fuling Chongqing"]
[Date "2024.07.04"]
[Round "8.5"]
[White "Guo, Weibao"]
[Black "Feng, Eunice"]
[Result "0-1"]
[ECO "D12"]
[WhiteElo "1900"]
[BlackElo "1936"]
[Annotator "NA RC"]
[PlyCount "112"]
[EventDate "2024.06.28"]
[EventType "team-tourn"]
[EventCountry "CHN"]
[SourceTitle "playchess.com"]
[Source "ChessBase"]
[SourceQuality "1"]
[TimeControl "40/5400+30:1800+30"]

1. d4 {[%emt 0:00:03]} d5 {[%emt 0:00:06]} 2. c4 {[%emt 0:00:04]} c6 {[%emt 0:00:04]} 3. Nf3 {[%emt 0:00:33]} Nf6 {[%emt 0:00:06]} 4. e3 {[%emt 0:00:28]} Bf5 {[%emt 0:00:31]} 5. cxd5 {[%emt 0:02:01]} cxd5 {[%emt 0:00:46]} 6. Qb3 {[%emt 0:00:20]} Qc8 {[%emt 0:06:41]} 7. Bd2 {[%emt 0:01:27] 7.Bd2 is better than 7.Nc3.} e6 {[%emt 0:01:47] D12: Slav Defence: 3 Nf3 Nf6 4 e3 Bf5.} 8. Bb5+ {[%emt 0:00:18]} Nc6 {[%emt 0:01:40]} 9. O-O {[%emt 0:00:47]} Bd6 {[%emt 0:12:38]} 10. Bb4 {[%emt 0:15:41]} Qc7 {[%emt 0:04:14]} 11. Rc1 {[%emt 0:04:05]} O-O {[%emt 0:00:29]} 12. Bxd6 $146 {[%emt 0:00:56]} ({Predecessor:} 12. Bxc6 bxc6 13. Nbd2 Rab8 14. Bxd6 Qxd6 15. Qc3 Nd7 16. b3 Rbc8 17. Ne5 f6 18. Nxd7 Qxd7 {1-0 Jodorcovsky Werjivker,P (2165)-Lanzilotta Mernies,M (1980) Montevideo zt 2.5 2013 (8)}) 12... Qxd6 {[%emt 0:00:06]} 13. Bxc6 {[%emt 0:00:54]} bxc6 {[%emt 0:00:06]} 14. Qa3 {[%emt 0:00:09]} Qxa3 {[%emt 0:03:37]} 15. Nxa3 {[%emt 0:00:01]} Rab8 {[%emt 0:00:12]} 16. b3 {[%emt 0:09:12]} Rfc8 {[%emt 0:11:38]} 17. Ne5 {[%emt 0:03:05]} Rb6 {[%emt 0:00:33]} 18. f3 {[%emt 0:01:24]} Rc7 {[%emt 0:16:20]} 19. Nb1 {[%emt 0:07:46]} ({White should try} 19. g4 $16 Bg6 20. h4) 19... Bxb1 {[%emt 0:00:33]} 20. Raxb1 {[%emt 0:00:51]} Nd7 {[%emt 0:00:21]} 21. Nxd7 {[%emt 0:02:38]} Rxd7 {[%emt 0:00:06]} 22. Rc5 {[%emt 0:01:49]} Kf8 {[%emt 0:02:25]} 23. Rbc1 {[%emt 0:00:42]} Rc7 {[%emt 0:00:35]} 24. Kf2 {[%emt 0:05:47]} Ke7 {[%emt 0:00:10]} 25. Ke2 {[%emt 0:00:52]} Kd6 {[%emt 0:00:22]} 26. Kd3 {[%emt 0:04:48]} Rb5 {[%emt 0:03:26]} 27. h4 {[%emt 0:01:52]} Rxc5 {[%emt 0:01:12]} 28. Rxc5 $14 {[%emt 0:01:25]} (28. Rc2 $2 {[%emt 0:01:25][%mdl 8192]}) 28... e5 {[%emt 0:02:36]} (28... h5 29. Ra5) 29. b4 {[%emt 0:00:59]} f6 {[%emt 0:01:27]} 30. Kc3 {[%emt 0:09:15]} Rb7 {[%emt 0:09:34]} 31. a3 {[%emt 0:07:35]} Rb5 {[%emt 0:05:19]} 32. g3 {[%emt 0:04:22]} h5 {[%emt 0:05:14]} 33. Kd3 {[%emt 0:02:41]} Rxc5 {[%emt 0:02:25]} 34. bxc5+ {[%emt 0:00:31]} Ke6 {[%emt 0:00:20]} 35. Kc3 {[%emt 0:05:22]} Kf5 {[%emt 0:03:01]} 36. Kd3 {[%emt 0:01:49]} g5 {[%emt 0:03:36]} 37. e4+ {[%emt 0:03:44]} dxe4+ {[%emt 0:00:48]} 38. fxe4+ {[%emt 0:00:02]} Ke6 {[%emt 0:00:06]} 39. Kc4 {[%emt 0:01:12]} exd4 {[%emt 0:00:07]} 40. Kxd4 {[%emt 0:00:00]} gxh4 {[%emt 0:00:00]} 41. gxh4 {[%emt 0:00:03]} f5 {[%emt 0:00:49]} 42. a4 {[%emt 0:21:08]} f4 {[%emt 0:01:15]} 43. a5 $19 {[%emt 0:04:07]} a6 {[%emt 0:00:12]} 44. e5 {[%emt 0:00:34]} f3 {[%emt 0:03:22]} 45. Ke3 {[%emt 0:00:06]} Kxe5 {[%emt 0:00:05]} 46. Kxf3 {[%emt 0:00:01]} Kf5 {[%emt 0:00:24]} 47. Ke3 {[%emt 0:00:40]} Kg4 {[%emt 0:00:17]} 48. Ke4 {[%emt 0:00:02]} Kxh4 {[%emt 0:00:06]} 49. Ke5 {[%emt 0:01:12]} Kg5 {[%emt 0:00:13]} 50. Kd6 {[%emt 0:00:38]} h4 {[%emt 0:00:09]} 51. Kxc6 {[%emt 0:00:03]} h3 {[%emt 0:00:05]} 52. Kd7 {[%emt 0:00:58]} h2 {[%emt 0:00:06]} 53. c6 {[%emt 0:00:01]} h1=Q {[%emt 0:00:07]} 54. c7 {[%emt 0:00:01]} Qd5+ {[%emt 0:00:14]} 55. Ke7 {[%emt 0:00:58]} Qc5+ {[%emt 0:01:14]} 56. Kd7 {[%emt 0:00:10]} Qxa5 {[%emt 0:00:18]} 0-1

[Event "Chinese League Division-A 2024"]
[Site "Fuling Chongqing"]
[Date "2024.07.04"]
[Round "8.6"]
[White "Wang, Yue"]
[Black "Chen, Qi b"]
[Result "1/2-1/2"]
[ECO "C67"]
[WhiteElo "2652"]
[BlackElo "2481"]
[Annotator "TA"]
[PlyCount "62"]
[EventDate "2024.06.28"]
[EventType "team-tourn"]
[EventCountry "CHN"]
[SourceTitle "playchess.com"]
[Source "ChessBase"]
[SourceQuality "1"]
[TimeControl "40/5400+30:1800+30"]

{[%evp 24,62,0,0,0,0,17,0,8,2,2,3,16,10,16,18,16,16,30,31,18,25,14,25,18,27,26,31,36,0,0,0,0,0,0,0,0,0,0,0,0]} 1. e4 {[%emt 0:00:23]} e5 {[%emt 0:00:16]} 2. Nf3 {[%emt 0:00:33]} Nc6 {[%emt 0:00:09]} 3. Bb5 {[%emt 0:01:33]} Nf6 {[%emt 0:01:33][%cal Bg8f6,Bf6e4,Be4d6,Bd6f5][%mdl 32]} 4. O-O {[%emt 0:02:24]} Nxe4 {[%emt 0:00:51]} 5. d4 {[%emt 0:05:57]} Nd6 {[%emt 0:00:19]} 6. Bxc6 {[%emt 0:00:07]} dxc6 {[%emt 0:00:06]} 7. dxe5 {[%emt 0:00:08]} Nf5 {[%emt 0:00:09]} 8. Qxd8+ {[%emt 0:00:20]} Kxd8 {[%emt 0:00:07]} 9. Nc3 {[%emt 0:00:12]} Be7 {[%emt 0:09:44]} 10. Rd1+ {[%emt 0:01:36]} Ke8 {[%emt 0:00:19]} 11. g4 {[%emt 0:00:30]} Nh4 {[%emt 0:00:45]} 12. Nxh4 {[%emt 0:00:10]} Bxh4 {[%emt 0:00:04]} 13. h3 {[%emt 0:00:07]} h5 {[%emt 0:02:52]} 14. f3 {[%emt 0:00:19]} Be6 {[%emt 0:04:17]} 15. Ne2 {[%emt 0:01:26] Prevents Bg3.} Rd8 {[%emt 0:02:29]} 16. Bf4 {[%emt 0:02:15]} Bc4 {[%emt 0:05:21] This pair of bishops is nice.} 17. Nc3 {[%emt 0:02:37]} f5 {[%emt 0:04:52]} 18. exf6 {[%emt 0:00:50]} Bxf6 {[%emt 0:00:06]} 19. Bxc7 {[%emt 0:00:12]} Rd7 {[%emt 0:01:23] [#] And now ...Bxc3 would win.} 20. Re1+ {[%emt 0:00:57][%cal Bd1e1,Be1e5,Be5f5][%mdl 32]} Kf7 {[%emt 0:00:22] Threatens to win with ...Bxc3.} 21. Be5 {[%emt 0:00:29]} hxg4 {[%emt 0:02:01]} 22. hxg4 {[%emt 0:00:33]} Bxe5 {[%emt 0:01:10]} 23. Rxe5 {[%emt 0:00:08]} Rd2 {[%emt 0:00:21][%cal Oh8h2]} 24. Rd1 {[%emt 0:00:44]} Rxc2 {[%emt 0:00:30][%cal Oh8h2] [#] Strongly threatening ...Rhh2!} 25. Rd7+ {[%emt 0:01:42]} Kf6 {[%emt 0:00:49]} 26. Rf5+ {[%emt 0:00:38]} Ke6 $1 {[%emt 0:00:23] aiming for ...Rhh2. The position is equal.} 27. Rff7 {[%emt 0:00:26] Intending Rde7+ and mate.} (27. Rxb7 Rhh2) 27... Bd5 $1 {[%emt 0:01:01]} 28. Rde7+ {[%emt 0:00:42]} (28. Ne2 $5 Ke5 $8 29. Rfe7+ Kf6 30. Rxb7 $11) 28... Kd6 {[%emt 0:00:05]} 29. Rd7+ {[%emt 0:00:12]} (29. Rxg7 Bxf3 (29... Rxb2 30. Rd7+ Ke5 31. Nxd5 $11) 30. Ne4+ Kd5 31. Nf6+ Kc5) 29... Ke6 {[%emt 0:00:03]} 30. Rde7+ {[%emt 0:00:06]} Kd6 {[%emt 0:00:07]} 31. Rd7+ {[%emt 0:00:07]} (31. Rxg7 Bxf3 (31... Rxb2 32. Rd7+ Ke5 33. Nxd5 $11) 32. Ne4+ Kd5 33. Nf6+ Kc5 34. b4+ Kxb4 35. Rxb7+ Kc5 $11) 31... Ke5 {[%emt 0:00:06] Weighted Error Value: White=0.04 (flawless) /Black=0.02 (flawless) .  Inaccurate:     	White=1     	---        OK:         	White=8     	Black=4      Best:        	---       	Black=3      Strong:       	---       	Black=2} 1/2-1/2

[Event "Chinese League Division-A 2024"]
[Site "Fuling Chongqing"]
[Date "2024.07.04"]
[Round "8.7"]
[White "Xu, Jun"]
[Black "Dai, Changren"]
[Result "1/2-1/2"]
[ECO "D37"]
[WhiteElo "2471"]
[BlackElo "2502"]
[Annotator "TA"]
[PlyCount "68"]
[EventDate "2024.06.28"]
[EventType "team-tourn"]
[EventCountry "CHN"]
[SourceTitle "playchess.com"]
[Source "ChessBase"]
[SourceQuality "1"]
[TimeControl "40/5400+30:1800+30"]

{[%evp 11,68,16,18,19,11,20,15,17,16,24,14,27,20,30,30,14,10,16,16,16,17,16,20,15,16,14,13,14,25,20,24,18,31,41,45,45,45,45,45,45,45,45,44,29,31,29,29,29,51,51,51,51,51,0,51,0,51,0,43]} 1. d4 {[%emt 0:00:03]} d5 {[%emt 0:00:06]} 2. c4 {[%emt 0:00:06]} e6 {[%emt 0:00:22]} 3. Nf3 {[%emt 0:00:55]} Nf6 {[%emt 0:00:05]} 4. Nc3 {[%emt 0:00:05]} Be7 {[%emt 0:00:06]} 5. Bf4 {[%emt 0:03:17]} O-O {[%emt 0:00:09]} 6. e3 {[%emt 0:00:03]} Nbd7 {[%emt 0:00:26]} 7. a3 {[%emt 0:00:16]} c5 {[%emt 0:00:58]} 8. cxd5 {[%emt 0:00:07]} Nxd5 {[%emt 0:00:37]} 9. Nxd5 {[%emt 0:00:05]} exd5 {[%emt 0:00:08]} 10. dxc5 {[%emt 0:00:21]} Nxc5 {[%emt 0:00:27]} 11. Be5 {[%emt 0:00:12]} Bf5 {[%emt 0:02:10]} 12. Be2 {[%emt 0:00:18]} Bf6 {[%emt 0:02:01]} 13. Bxf6 {[%emt 0:04:08]} Qxf6 {[%emt 0:00:10]} 14. Nd4 {[%emt 0:01:39]} Be4 {[%emt 0:04:18]} 15. Rc1 {[%emt 0:01:39]} Rac8 {[%emt 0:02:30]} (15... Bxg2 $2 {is the wrong capture.} 16. Rg1 $18) 16. O-O {[%emt 0:00:38]} Ne6 {[%emt 0:01:45]} 17. Qd2 {[%emt 0:02:34]} Nxd4 {[%emt 0:02:08]} 18. Qxd4 {[%emt 0:05:02]} Qxd4 {[%emt 0:07:17]} 19. exd4 {[%emt 0:00:08]} Bf5 {[%emt 0:00:59]} 20. g4 {[%emt 0:02:36]} Be6 {[%emt 0:02:21]} 21. f4 {[%emt 0:01:45]} f5 {[%emt 0:00:09]} 22. g5 {[%emt 0:00:09]} Rxc1 {[%emt 0:00:36]} 23. Rxc1 {[%emt 0:00:02]} Rc8 {[%emt 0:00:08]} 24. Rxc8+ {[%emt 0:00:06]} Bxc8 $14 {[%emt 0:00:05][%mdl 4096] Endgame. KB-KB} 25. Kf2 {[%emt 0:00:34]} Kf7 {[%emt 0:00:06]} 26. h4 {[%emt 0:00:10]} Ke6 {[%emt 0:00:56]} 27. Ke3 {[%emt 0:00:53]} Kd6 {[%emt 0:00:09]} 28. Kd2 {[%emt 0:01:12]} Bd7 {[%emt 0:00:21]} 29. Kc3 {[%emt 0:00:06]} a5 {[%emt 0:00:38]} 30. b4 {[%emt 0:00:09]} b6 {[%emt 0:00:07]} 31. Bd3 {[%emt 0:00:13]} Ke6 {[%emt 0:00:40]} 32. Be2 {[%emt 0:00:16]} Kd6 {[%emt 0:00:05]} 33. Bd3 {[%emt 0:00:06]} Ke6 $1 {[%emt 0:00:03]} 34. Be2 {[%emt 0:00:05]} Kd6 {[%emt 0:00:41] Weighted Error Value: White=0.07 (flawless) /Black=0.02 (flawless) .  OK:         	White=12    	Black=9      Strong:       	---       	Black=1} 1/2-1/2

[Event "Chinese League Division-A 2024"]
[Site "Fuling Chongqing"]
[Date "2024.07.04"]
[Round "8.8"]
[White "Chu, Wei Chao"]
[Black "Lin, Chen"]
[Result "1/2-1/2"]
[ECO "D79"]
[WhiteElo "2412"]
[BlackElo "2484"]
[Annotator "TA"]
[PlyCount "63"]
[EventDate "2024.06.28"]
[EventType "team-tourn"]
[EventCountry "CHN"]
[SourceTitle "playchess.com"]
[Source "ChessBase"]
[SourceQuality "1"]
[TimeControl "40/5400+30:1800+30"]

{[%evp 24,63,14,10,10,13,4,0,0,0,0,0,0,0,0,0,0,0,0,0,0,0,0,0,0,0,0,0,0,0,0,0,0,0,0,0,0,0,0,0,0,0]} 1. d4 {[%emt 0:00:03]} Nf6 {[%emt 0:00:29]} 2. c4 {[%emt 0:00:35]} g6 {[%emt 0:00:34]} 3. g3 {[%emt 0:00:59]} c6 {[%emt 0:00:42]} 4. Bg2 {[%emt 0:00:20]} d5 {[%emt 0:00:34]} 5. cxd5 {[%emt 0:02:27]} cxd5 {[%emt 0:00:08]} 6. Nc3 {[%emt 0:00:05]} Bg7 {[%emt 0:00:51]} 7. Nf3 {[%emt 0:01:55]} O-O {[%emt 0:00:21]} 8. O-O {[%emt 0:00:07]} Ne4 {[%emt 0:03:41]} 9. Ne5 {[%emt 0:11:29]} Nxc3 {[%emt 0:05:03]} 10. bxc3 {[%emt 0:02:41]} Nc6 {[%emt 0:01:18]} 11. Nxc6 {[%emt 0:05:16]} bxc6 {[%emt 0:00:09]} 12. Qa4 {[%emt 0:00:07]} Qb6 {[%emt 0:01:22]} 13. Ba3 {[%emt 0:03:35] The position is equal.} (13. e4 {is interesting.} Qa6 14. Qa3 dxe4 15. Bxe4 e5 16. Rd1) 13... Qa6 {[%emt 0:01:54]} 14. Qxa6 {[%emt 0:07:49]} Bxa6 {[%emt 0:00:06]} 15. Rfe1 {[%emt 0:00:06][%cal Oe2e4]} Rfe8 {[%emt 0:01:07]} 16. e3 {[%emt 0:03:01]} e6 {[%emt 0:00:07]} 17. Bf1 {[%emt 0:02:42]} Bxf1 {[%emt 0:00:09]} 18. Kxf1 {[%emt 0:00:07]} Bf8 {[%emt 0:00:09]} 19. Bxf8 {[%emt 0:02:26]} Kxf8 $11 {[%emt 0:00:10][%mdl 4096] Endgame. KRR-KRR} 20. Reb1 {[%emt 0:00:10]} Reb8 {[%emt 0:01:21]} 21. Rb3 {[%emt 0:02:59]} Rb6 {[%emt 0:00:30]} 22. Rab1 {[%emt 0:02:31]} Rab8 {[%emt 0:00:16]} 23. Ke2 {[%emt 0:01:36]} Ke7 {[%emt 0:00:17]} 24. Kd3 {[%emt 0:00:09]} Kd6 {[%emt 0:00:17]} 25. c4 {[%emt 0:02:31] [#] c5+ would now be deadly.} Rxb3+ {[%emt 0:00:46]} 26. axb3 {[%emt 0:00:57]} dxc4+ {[%emt 0:01:06]} 27. Kxc4 {[%emt 0:00:09] KR-KR} a5 {[%emt 0:00:37]} 28. Ra1 {[%emt 0:00:22]} Rb4+ {[%emt 0:00:40]} 29. Kc3 {[%emt 0:00:13]} Rb5 {[%emt 0:00:31]} 30. Kc4 {[%emt 0:00:08]} Rb4+ {[%emt 0:00:16]} 31. Kc3 {[%emt 0:00:07]} Rb5 {[%emt 0:00:06]} 32. Kc4 {[%emt 0:00:03] A rather calm draw.   Weighted Error Value: White=0.01 (flawless) /Black=0.00 (flawless) .  OK:         	White=9     	Black=14     Best:        	White=2     	---} 1/2-1/2

[Event "Chinese League Division-A 2024"]
[Site "Fuling Chongqing"]
[Date "2024.07.04"]
[Round "8.9"]
[White "Guo, Qi"]
[Black "Xiao, Yiyi"]
[Result "1/2-1/2"]
[ECO "D32"]
[WhiteElo "2362"]
[BlackElo "2338"]
[Annotator "TA"]
[PlyCount "66"]
[EventDate "2024.06.28"]
[EventType "team-tourn"]
[EventCountry "CHN"]
[SourceTitle "playchess.com"]
[Source "ChessBase"]
[SourceQuality "1"]
[TimeControl "40/5400+30:1800+30"]

{[%evp 23,66,12,3,0,0,0,0,0,0,-64,0,0,0,0,0,0,0,0,0,5,5,0,0,0,0,-6,-5,-7,-6,-9,-2,-8,0,0,0,0,0,-5,0,0,0,-5,0,0,0]} 1. d4 {[%emt 0:00:06]} d5 {[%emt 0:00:07]} 2. c4 {[%emt 0:00:09]} e6 {[%emt 0:00:07]} 3. Nc3 {[%emt 0:00:06]} Nf6 {[%emt 0:00:06]} 4. Nf3 {[%emt 0:00:07]} c5 {[%emt 0:00:48]} 5. e3 {[%emt 0:01:44]} a6 {[%emt 0:02:07]} 6. cxd5 {[%emt 0:01:52]} exd5 {[%emt 0:00:09]} 7. Be2 {[%emt 0:00:06]} Nc6 {[%emt 0:00:38]} 8. O-O {[%emt 0:00:11]} Bd6 {[%emt 0:01:45]} 9. dxc5 {[%emt 0:00:38]} Bxc5 {[%emt 0:00:06]} 10. b3 {[%emt 0:00:13]} O-O {[%emt 0:00:19]} 11. Bb2 {[%emt 0:00:18]} Ba7 {[%emt 0:04:29]} 12. Rc1 {[%emt 0:03:24][%cal Ba1c1,Bc1c2,Bc2d2][%mdl 32]} Re8 {[%emt 0:02:39]} 13. Rc2 {[%emt 0:05:32]} Be6 {[%emt 0:07:56]} 14. Rd2 {[%emt 0:02:09]} Qe7 {[%emt 0:03:47]} 15. Qb1 {[%emt 0:02:15]} Rad8 {[%emt 0:01:26]} 16. Rfd1 {[%emt 0:00:31]} (16. h3 $11) 16... Bg4 {[%emt 0:10:43]} ({Better is} 16... Ng4 $15 17. Bd3 (17. Nxd5 $2 {perishes.} Bxd5 18. Rxd5 Nxf2 $19) 17... h6) 17. Nxd5 $11 {[%emt 0:03:10] The position is equal.} Nxd5 {[%emt 0:00:08]} 18. Rxd5 {[%emt 0:00:06]} Rxd5 {[%emt 0:00:06]} 19. Rxd5 {[%emt 0:00:06]} Bxe3 {[%emt 0:00:36]} 20. Bc4 {[%emt 0:05:23]} Bf4 {[%emt 0:02:50] [#] Strongly threatening ...Bxf3.} 21. Qd3 {[%emt 0:04:22]} Bh6 {[%emt 0:05:01] White must now prevent ...b5.} 22. Qc3 {[%emt 0:01:22][%cal Od5g5] Hoping for Rg5!} Be6 {[%emt 0:00:55]} 23. Rd1 {[%emt 0:00:13][%cal Oc4a6]} Bxc4 $1 {[%emt 0:00:17]} 24. Qxc4 {[%emt 0:00:06] g4 is the strong threat.} Qe2 {[%emt 0:00:31]} 25. Qxe2 {[%emt 0:01:10]} Rxe2 {[%emt 0:00:07]} 26. Re1 {[%emt 0:00:12]} Rxe1+ {[%emt 0:00:13]} 27. Nxe1 {[%emt 0:00:07][%mdl 4096] Endgame. KBN-KBN} f6 {[%emt 0:01:32]} 28. Nd3 {[%emt 0:00:24]} Kf7 {[%emt 0:01:55]} 29. Nc5 {[%emt 0:00:16]} Nd8 {[%emt 0:00:06]} 30. Kf1 {[%emt 0:00:09]} Bf4 {[%emt 0:00:55]} 31. Ke2 {[%emt 0:00:39]} Bd6 {[%emt 0:00:15]} (31... Bxh2 $2 32. g3 $18) 32. Bd4 {[%emt 0:00:34]} Ne6 {[%emt 0:00:38]} (32... Bxh2 $2 {loses.} 33. g3 $18) 33. Nxe6 {[%emt 0:00:18]} Kxe6 {[%emt 0:00:06] An even fight not without its subleties.   Weighted Error Value: White=0.05 (flawless) /Black=0.04 (flawless) .  Mistake:       	White=1     	Black=1      OK:         	White=9     	Black=11     Strong:       	---       	Black=1} 1/2-1/2

[Event "Chinese League Division-A 2024"]
[Site "Fuling Chongqing"]
[Date "2024.07.04"]
[Round "8.10"]
[White "Zhou, Shumeng"]
[Black "Gao, Muziyan"]
[Result "1/2-1/2"]
[ECO "B32"]
[WhiteElo "2173"]
[BlackElo "1943"]
[Annotator "RC"]
[PlyCount "77"]
[EventDate "2024.06.28"]
[EventType "team-tourn"]
[EventCountry "CHN"]
[SourceTitle "playchess.com"]
[Source "ChessBase"]
[SourceQuality "1"]
[TimeControl "40/5400+30:1800+30"]

1. e4 {[%emt 0:00:03]} c5 {[%emt 0:00:05]} 2. Nf3 {[%emt 0:00:07]} Nc6 {[%emt 0:00:07]} 3. d4 {[%emt 0:00:12]} cxd4 {[%emt 0:00:06]} 4. Nxd4 {[%emt 0:00:05]} e5 {[%emt 0:00:07]} 5. Nb5 {[%emt 0:00:40]} d6 {[%emt 0:00:34]} 6. N1c3 {[%emt 0:00:27]} a6 {[%emt 0:01:17]} 7. Na3 {[%emt 0:00:07]} Be7 {[%emt 0:02:01]} 8. Be3 {[%emt 0:02:12]} Nf6 {[%emt 0:05:06]} 9. Nc4 {[%emt 0:06:01]} b5 {[%emt 0:05:33]} 10. Nb6 {[%emt 0:01:01]} Rb8 {[%emt 0:00:08]} 11. Nbd5 {[%emt 0:00:18]} O-O {[%emt 0:04:25]} 12. Be2 {[%emt 0:05:35]} b4 {[%emt 0:02:37]} 13. Nxf6+ {[%emt 0:00:55]} Bxf6 {[%emt 0:00:09]} 14. Nd5 {[%emt 0:00:20]} Bg5 {[%emt 0:03:30]} 15. O-O {[%emt 0:06:41]} a5 {[%emt 0:09:32]} 16. Qd2 {[%emt 0:03:29]} Bxe3 {[%emt 0:00:51]} 17. Nxe3 {[%emt 0:00:24]} Be6 {[%emt 0:06:12]} 18. c3 {[%emt 0:04:09]} bxc3 {[%emt 0:06:14]} 19. bxc3 {[%emt 0:00:06]} Qc7 {[%emt 0:03:42]} 20. Rfd1 {[%emt 0:04:21]} Rfd8 {[%emt 0:00:21]} 21. Rab1 {[%emt 0:02:57]} Rxb1 22. Rxb1 Ne7 23. Bb5 g6 24. a4 {[%emt 0:01:08]} Kg7 {[%emt 0:07:14]} 25. c4 {[%emt 0:06:17]} Nc6 {[%emt 0:18:00]} 26. Bxc6 {[%emt 0:07:58]} Qxc6 27. Qxa5 {[%emt 0:00:00]} Qxe4 {[%emt 0:00:36]} 28. Qb4 {[%emt 0:00:00]} Bxc4 {[%emt 0:05:26]} 29. Nxc4 {[%emt 0:06:07]} Rc8 30. Re1 {[%emt 0:00:00]} Qxc4 {[%emt 0:00:38]} 31. Qxd6 {[%emt 0:00:00]} Qc3 {[%emt 0:01:37]} 32. Kf1 {[%emt 0:00:00]} Qc4+ {[%emt 0:01:11]} 33. Kg1 {[%emt 0:00:00]} Qd4 {[%emt 0:00:59]} 34. Qxd4 {[%emt 0:00:00]} exd4 {[%emt 0:00:04]} 35. Rd1 {[%emt 0:00:00]} Rc4 {[%emt 0:00:25]} 36. Ra1 {[%emt 0:00:00]} d3 {[%emt 0:00:43]} 37. Kf1 {[%emt 0:00:00]} d2 {[%emt 0:00:12]} 38. Rd1 {[%emt 0:00:00]} Rxa4 {[%emt 0:00:15]} 39. Rxd2 {[%emt 0:00:00]} 1/2-1/2

[Event "Chinese League Division-A 2024"]
[Site "Fuling Chongqing"]
[Date "2024.07.04"]
[Round "8.11"]
[White "Wan, Yunguo"]
[Black "Bai, Jinshi"]
[Result "1/2-1/2"]
[ECO "C64"]
[WhiteElo "2498"]
[BlackElo "2564"]
[Annotator "TA"]
[PlyCount "119"]
[EventDate "2024.06.28"]
[EventType "team-tourn"]
[EventCountry "CHN"]
[SourceTitle "playchess.com"]
[Source "ChessBase"]
[SourceQuality "1"]
[TimeControl "40/5400+30:1800+30"]

{[%evp 44,119,34,28,38,22,33,25,57,21,31,26,92,108,177,152,218,119,92,103,103,106,90,104,90,106,82,87,84,65,65,67,87,72,87,66,66,34,37,46,52,55,185,135,140,152,127,84,77,10,10,10,10,10,10,10,14,8,8,8,8,0,0,0,0,0,0,0,0,0,0,0,0,0,0,0,35,42]} 1. e4 {[%emt 0:00:04]} e5 {[%emt 0:00:08]} 2. Nf3 {[%emt 0:00:23]} Nc6 {[%emt 0:00:12]} 3. Bb5 {[%emt 0:00:27]} a6 {[%emt 0:00:18]} 4. Ba4 {[%emt 0:00:08]} Bc5 {[%emt 0:00:35]} 5. O-O {[%emt 0:00:31]} Nge7 {[%emt 0:00:23]} 6. c3 {[%emt 0:03:41]} Ng6 {[%emt 0:00:16] 6...Ba7 is the modern continuation. C64: Ruy Lopez: Classical Defence (3...Bc5) except 4 0-0 Nf6.} 7. d4 {[%emt 0:00:41]} Ba7 {[%emt 0:00:12]} 8. Bg5 {[%emt 0:08:33]} f6 {[%emt 0:00:06]} 9. Be3 {[%emt 0:00:09]} O-O {[%emt 0:00:09]} 10. d5 {[%emt 0:03:27]} Nce7 {[%emt 0:12:53]} 11. Bxa7 {[%emt 0:00:52]} Rxa7 {[%emt 0:00:04]} 12. d6 {[%emt 0:00:07]} cxd6 {[%emt 0:00:31]} 13. Qxd6 {[%emt 0:00:05]} b5 {[%emt 0:02:18]} 14. Bb3+ {[%emt 0:06:04]} Kh8 {[%emt 0:00:07]} 15. Nbd2 {[%emt 0:05:12]} Qc7 {[%emt 0:11:41]} 16. Qxc7 {[%emt 0:00:31]} Rxc7 {[%emt 0:00:05]} 17. a4 {[%emt 0:04:20]} Bb7 {[%emt 0:02:44]} 18. axb5 {[%emt 0:01:52]} axb5 {[%emt 0:00:05]} 19. Ra5 $146 {[%emt 0:02:55]} ({Predecessor:} 19. g3 d5 20. exd5 Nxd5 21. Ra7 Nde7 22. Rfa1 Nc8 23. R7a5 Nd6 24. Ne1 Rd8 25. Nc2 {½-½ Iljiushenok,I (2527)-Drygalov,A (2494) Moscow op-A 18th 2022 (7)}) 19... Nc6 {[%emt 0:17:40]} 20. Ra2 {[%emt 0:03:42]} Nce7 {[%emt 0:02:40]} 21. Rfa1 {[%emt 0:04:30]} Rb8 {[%emt 0:06:00]} 22. Ne1 {[%emt 0:09:21]} d5 {[%emt 0:02:17]} 23. Ra5 {[%emt 0:05:05]} Bc6 {[%emt 0:06:52]} 24. Nd3 {[%emt 0:01:28]} dxe4 {[%emt 0:04:13]} 25. Nc5 {[%emt 0:00:30]} h5 {[%emt 0:07:03]} 26. Ndxe4 {[%emt 0:04:54]} (26. Na6 Rd8 27. Nxe4 (27. Nxc7 Rxd2 28. Rd1 Rxb2 $15) 27... Ra7 $11) 26... Bxe4 {[%emt 0:06:43]} 27. Nxe4 {[%emt 0:00:06]} Nf4 {[%emt 0:02:20]} (27... b4 $11 {keeps the balance.} 28. c4 (28. Ra8 Rxa8 29. Rxa8+ Kh7 $11) 28... Nc6) 28. g3 {[%emt 0:08:14]} Nd3 {[%emt 0:00:15]} (28... b4 $16 {keeps fighting.}) 29. Ra8 $1 $18 {[%emt 0:02:13]} Rcc8 {[%emt 0:06:04]} (29... Rxa8 $16 30. Rxa8+ Rc8 31. Rxc8+ Nxc8) 30. Rxb8 {[%emt 0:00:30]} (30. R8a7 $18 Nc6 31. Rd7) 30... Rxb8 $16 {[%emt 0:00:04]} 31. Ra7 {[%emt 0:00:31]} Nc6 {[%emt 0:01:10]} 32. Rc7 {[%emt 0:02:33]} Na5 {[%emt 0:01:05]} 33. Bf7 {[%emt 0:00:07]} Nxb2 {[%emt 0:04:30]} 34. Bxh5 {[%emt 0:00:08]} Nbc4 {[%emt 0:03:06]} 35. Bg6 {[%emt 0:00:46]} Nb7 {[%emt 0:00:26]} 36. Kg2 {[%emt 0:09:50]} Ncd6 {[%emt 0:00:53]} 37. Nxd6 {[%emt 0:00:42]} Nxd6 {[%emt 0:00:03]} 38. Kf3 {[%emt 0:00:35]} Kg8 {[%emt 0:01:56]} 39. Rd7 {[%emt 0:01:16]} Nc4 {[%emt 0:00:51]} 40. Ke4 {[%emt 0:00:00]} Rc8 $1 {[%emt 0:00:00]} 41. Ra7 {[%emt 0:19:18]} Nb6 {[%emt 0:07:00]} 42. Kf5 {[%emt 0:00:24]} Kf8 {[%emt 0:16:43] [#]} ({Black should play} 42... Rd8 $14) 43. h4 {[%emt 0:01:57]} (43. Bh5 $1 $18) 43... Nd5 {[%emt 0:03:24]} 44. Ke6 {[%emt 0:01:37]} Nb6 {[%emt 0:00:08]} (44... Nxc3 $2 {perishes.} 45. Kd7 Rb8 46. Kc7 $18) 45. h5 {[%emt 0:02:22]} Rxc3 {[%emt 0:01:16] [#]} 46. Rf7+ {[%emt 0:07:07]} ({Better is} 46. Be4 $1 $16 {Rb7 would now be deadly.} Rc8 47. Rf7+ Kg8 48. Re7) 46... Kg8 $11 {[%emt 0:00:03]} 47. Rb7 {[%emt 0:00:10]} Rc6+ {[%emt 0:00:06]} 48. Kf5 {[%emt 0:09:14]} Nc8 {[%emt 0:00:04]} 49. Rb8 {[%emt 0:01:28]} (49. Rxb5 $2 {is the wrong capture.} Nd6+ 50. Kg4 Nxb5 $19) 49... Kf8 {[%emt 0:01:10]} 50. Ke4 {[%emt 0:00:04]} (50. Rxb5 $2 {loses.} Nd6+ 51. Kg4 Nxb5 $19) 50... Ke7 {[%emt 0:00:44]} 51. Rb7+ {[%emt 0:00:35]} Kf8 {[%emt 0:00:05]} 52. Rf7+ {[%emt 0:01:23]} Kg8 {[%emt 0:00:03]} 53. Rd7 {[%emt 0:00:05]} Rd6 $1 {[%emt 0:01:19]} 54. Rc7 {[%emt 0:01:14]} Rd8 {[%emt 0:02:26]} 55. Kf5 {[%emt 0:00:09]} Kf8 {[%emt 0:00:48]} 56. Rf7+ {[%emt 0:00:09]} Kg8 {[%emt 0:00:04]} 57. Rc7 {[%emt 0:00:07]} Kf8 {[%emt 0:00:02]} 58. Rf7+ {[%emt 0:04:23]} Kg8 {[%emt 0:00:03]} 59. Rc7 {[%emt 0:00:21]} e4 60. Kxe4 1/2-1/2